fUST/lending_fUST_20240226
["ID","MTS","AMOUNT","RATE_DAILY","PERIOD"]
[315211472,1708938645253,-500.0,0.00019726,2]
[315211473,1708938645262,-151.0,0.00019726,2]
[315211474,1708938645271,-151.0,0.00019726,2]
[315211475,1708938645281,-151.0,0.00019726,2]
[315211476,1708938645290,-151.0,0.00019726,2]
[315211477,1708938645299,-500.0,0.00019726,2]
[315211478,1708938645309,-500.0,0.00019726,2]
[315211479,1708938645318,-500.0,0.00019726,2]
[315211480,1708938645327,-604.73,0.00019726,2]
[315211481,1708938645336,-500.0,0.00019726,2]
[315211482,1708938645345,-503.13338535,0.00019726,2]
[315211483,1708938645354,-156.352017,0.00019726,2]
[315211484,1708938645363,-500.0,0.00019726,2]
[315211485,1708938645372,-500.0,0.00019726,2]
[315211486,1708938645382,-503.86862046,0.00019726,2]
[315211487,1708938645392,-500.0,0.00019726,2]
[315211488,1708938645401,-500.0,0.00019726,2]
[315211489,1708938645410,-500.0,0.00019726,2]
[315211490,1708938645420,-500.0,0.00019726,2]
[315211491,1708938645429,-500.0,0.00019726,2]
[315211492,1708938645440,-501.23396073,0.00019726,2]
[315211493,1708938645450,-500.0,0.00019726,2]
[315211494,1708938645459,-2034.94,0.00019726,2]
[315211495,1708938645468,-500.0,0.00019726,2]
[315211496,1708938645478,-500.0,0.00019726,2]
[315211497,1708938645487,-503.09460402,0.00019726,2]
[315211498,1708938645496,-500.0,0.00019726,2]
[315211499,1708938645504,-436.57904397,0.00019726,2]
[315211500,1708938645513,-500.0,0.00019726,2]
[315211501,1708938645523,-500.0,0.00019726,2]
[315211502,1708938645532,-500.0,0.00019726,2]
[315211503,1708938645541,-1084.8507952,0.00019726,2]
[315211517,1708938645874,-1180.8570194,0.00019452,2]
[315211524,1708938646218,-428.36024684,0.00019177,2]
[315211525,1708938646228,-476.0429806,0.00019452,2]
[315211526,1708938646237,-1253.10248679,0.00019557,3]
[315211553,1708939222306,202.0,0.0002751,120]
[315211556,1708939389854,218.15711076,0.00022,30]
[315211619,1708939834389,-521.57034808,0.00018057,2]
[315211626,1708939834451,-6981.49880212,0.00018057,2]
[315211627,1708939834461,-428.36024684,0.0001812,2]
[315211628,1708939834471,-1862.69232421,0.00018121,2]
[315211629,1708939834481,-24900.0,0.00018156,2]
[315211630,1708939834490,-12553.3993782,0.00018201,2]
[315211631,1708939834499,-342.182504,0.00018747,2]
[315211632,1708939834509,-973.35436516,0.00019176,2]
[315211633,1708939834517,-299.94859112,0.00019176,2]
[315211647,1708939834645,-748.4774582,0.00019177,2]
[315211649,1708939834654,-500.0,0.00019178,2]
[315211651,1708939834664,-500.0,0.00019178,2]
[315211653,1708939834672,-500.0,0.00019178,2]
[315211654,1708939834681,-500.0,0.00019178,2]
[315211655,1708939834690,-152.48583566,0.00019178,2]
[315211656,1708939834699,-500.0,0.00019178,2]
[315211657,1708939834709,-500.0,0.00019178,2]
[315211658,1708939834718,-500.0,0.00019178,2]
[315211659,1708939834727,-1516.91,0.00019178,2]
[315211660,1708939834736,-500.0,0.00019178,2]
[315211661,1708939834745,-500.0,0.00019178,2]
[315211662,1708939834755,-287.69325994,0.00019178,2]
[315211663,1708939834764,-222.2395301,0.00019178,2]
[315211664,1708939834772,-500.0,0.00019178,2]
[315211665,1708939834781,-500.0,0.00019178,2]
[315211667,1708939834790,-500.0,0.00019178,2]
[315211668,1708939834799,-554.34,0.00019178,2]
[315211669,1708939834808,-500.0,0.00019178,2]
[315211671,1708939834817,-500.0,0.00019178,2]
[315211672,1708939834826,-500.0,0.00019178,2]
[315211673,1708939834835,-500.0,0.00019178,2]
[315211674,1708939834844,-500.63508727,0.00019178,2]
[315211675,1708939834855,-500.0,0.00019178,2]
[315211676,1708939834865,-500.0,0.00019178,2]
[315211677,1708939834874,-500.0,0.00019178,2]
[315211678,1708939834885,-500.0,0.00019178,2]
[315211679,1708939834894,-500.0,0.00019178,2]
[315211680,1708939834903,-500.0,0.00019178,2]
[315211681,1708939834912,-500.0,0.00019178,2]
[315211682,1708939834922,-500.0,0.00019178,2]
[315211683,1708939834931,-500.0,0.00019178,2]
[315211684,1708939834941,-474.48126572,0.00019178,2]
[315211685,1708939834951,-500.0,0.00019178,2]
[315211686,1708939834960,-500.0,0.00019178,2]
[315211687,1708939834970,-3507.98,0.00019178,2]
[315211688,1708939834980,-500.0,0.00019178,2]
[315211689,1708939834989,-1429.74,0.00019178,2]
[315211690,1708939834998,-500.0,0.00019178,2]
[315211691,1708939835008,-1518.83,0.00019178,2]
[315211692,1708939835018,-500.0,0.00019178,2]
[315211693,1708939835028,-500.0,0.00019178,2]
[315211694,1708939835038,-473.61063413,0.00019178,2]
[315211695,1708939835048,-632.07,0.00019178,2]
[315211696,1708939835057,-500.0,0.00019178,2]
[315211697,1708939835067,-1409.74,0.00019178,2]
[315211698,1708939835077,-500.0,0.00019178,2]
[315211699,1708939835087,-805.77,0.00019178,2]
[315211700,1708939835097,-500.0,0.00019178,2]
[315211701,1708939835107,-500.0,0.00019178,2]
[315211702,1708939835116,-502.20415089,0.00019178,2]
[315211703,1708939835126,-500.0,0.00019178,2]
[315211704,1708939835140,-500.0,0.00019178,2]
[315211705,1708939835150,-500.0,0.00019178,2]
[315211706,1708939835161,-500.0,0.00019178,2]
[315211707,1708939835171,-502.89262175,0.00019178,2]
[315211708,1708939835181,-201.1962496,0.00019178,2]
[315211709,1708939835196,-298.8037504,0.00019178,2]
[315211710,1708939835206,-500.0,0.00019178,2]
[315211711,1708939835215,-500.0,0.00019178,2]
[315211712,1708939835224,-500.0,0.00019178,2]
[315211713,1708939835234,-100.5466738,0.00019178,2]
[315211745,1708939839672,-399.4533262,0.00019178,2]
[315211747,1708939839682,-500.0,0.00019178,2]
[315211749,1708939839691,-500.0,0.00019178,2]
[315211751,1708939839700,-500.0,0.00019178,2]
[315211753,1708939839711,-1865.36,0.00019178,2]
[315211755,1708939839720,-500.0,0.00019178,2]
[315211757,1708939839730,-500.0,0.00019178,2]
[315211759,1708939839739,-500.0,0.00019178,2]
[315211761,1708939839748,-500.0,0.00019178,2]
[315211763,1708939839757,-500.0,0.00019178,2]
[315211765,1708939839766,-500.0,0.00019178,2]
[315211767,1708939839775,-500.0,0.00019178,2]
[315211769,1708939839785,-631.67993521,0.00019178,2]
[315211770,1708939839794,-1516.11,0.00019178,2]
[315211772,1708939839804,-479.17651164,0.00019178,2]
[315211774,1708939839813,-500.0,0.00019178,2]
[315211775,1708939839822,-500.0,0.00019178,2]
[315211776,1708939839831,-500.0,0.00019178,2]
[315211777,1708939839840,-500.0,0.00019178,2]
[315211778,1708939839849,-500.0,0.00019178,2]
[315211779,1708939839859,-500.0,0.00019178,2]
[315211780,1708939839867,-500.0,0.00019178,2]
[315211781,1708939839877,-628.87,0.00019178,2]
[315211782,1708939839887,-500.0,0.00019178,2]
[315211783,1708939839896,-500.0,0.00019178,2]
[315211784,1708939839904,-500.0,0.00019178,2]
[315211785,1708939839914,-500.0,0.00019178,2]
[315211786,1708939839923,-500.0,0.00019178,2]
[315211787,1708939839932,-500.0,0.00019178,2]
[315211788,1708939839942,-500.0,0.00019178,2]
[315211789,1708939839951,-500.0,0.00019178,2]
[315211790,1708939839961,-500.0,0.00019178,2]
[315211791,1708939839970,-948.72,0.00019178,2]
[315211792,1708939839979,-500.0,0.00019178,2]
[315211793,1708939839989,-500.0,0.00019178,2]
[315211794,1708939839998,-500.0,0.00019178,2]
[315211795,1708939840008,-500.0,0.00019178,2]
[315211796,1708939840017,-500.0,0.00019178,2]
[315211797,1708939840026,-500.0,0.00019178,2]
[315211798,1708939840035,-500.85128667,0.00019178,2]
[315211799,1708939840045,-432.44409481,0.00019178,2]
[315211800,1708939840054,-500.0,0.00019178,2]
[315211801,1708939840063,-500.0,0.00019178,2]
[315211802,1708939840072,-500.0,0.00019178,2]
[315211803,1708939840081,-500.0,0.00019178,2]
[315211804,1708939840091,-324.25190158,0.00019178,2]
[315211805,1708939840100,-500.0,0.00019178,2]
[315211806,1708939840110,-500.0,0.00019178,2]
[315211807,1708939840119,-500.0,0.00019178,2]
[315211808,1708939840129,-500.0,0.00019178,2]
[315211809,1708939840143,-500.0,0.00019178,2]
[315211810,1708939840153,-500.0,0.00019178,2]
[315211811,1708939840163,-746.96,0.00019178,2]
[315211812,1708939840172,-449.10144349,0.00019178,2]
[315211813,1708939840182,-1368.12,0.00019178,2]
[315211814,1708939840192,-500.0,0.00019178,2]
[315211815,1708939840202,-500.0,0.00019178,2]
[315211816,1708939840212,-3937.74,0.00019178,2]
[315211817,1708939840221,-500.0,0.00019178,2]
[315211818,1708939840231,-922.25,0.00019178,2]
[315211819,1708939840241,-500.0,0.00019178,2]
[315211820,1708939840250,-500.0,0.00019178,2]
[315211821,1708939840260,-500.0,0.00019178,2]
[315211822,1708939840270,-2939.42,0.00019178,2]
[315211823,1708939840279,-2807.22,0.00019178,2]
[315211824,1708939840290,-500.0,0.00019178,2]
[315211825,1708939840301,-500.0,0.00019178,2]
[315211826,1708939840311,-500.0,0.00019178,2]
[315211827,1708939840322,-500.0,0.00019178,2]
[315211828,1708939840332,-1899.13,0.00019178,2]
[315211829,1708939840342,-2617.62,0.00019178,2]
[315211830,1708939840353,-502.27989563,0.00019178,2]
[315211831,1708939840363,-501.7897385,0.00019178,2]
[315211832,1708939840373,-500.0,0.00019178,2]
[315211833,1708939840393,-500.0,0.00019178,2]
[315211834,1708939840404,-249.10033961,0.00019178,2]
[315211835,1708939840415,-581.87051322,0.00019178,2]
[315211836,1708939840425,-500.0,0.00019178,2]
[315211837,1708939840435,-500.0,0.00019178,2]
[315211838,1708939840444,-318.97915559,0.00019178,2]
[315211839,1708939840455,-1000.0,0.00019178,2]
[315211840,1708939840465,-442.24473459,0.00019178,2]
[315211841,1708939840474,-23489.31,0.00019178,2]
[315211842,1708939840484,-500.0,0.00019178,2]
[315211843,1708939840493,-500.0,0.00019178,2]
[315211844,1708939840503,-500.0,0.00019178,2]
[315211845,1708939840512,-501.78484159,0.00019178,2]
[315211846,1708939840521,-2032.24,0.00019178,2]
[315211847,1708939840531,-2159.56,0.00019178,2]
[315211848,1708939840541,-500.0,0.00019178,2]
[315211849,1708939840550,-500.0,0.00019178,2]
[315211850,1708939840559,-431.59781267,0.00019178,2]
[315211851,1708939840569,-500.0,0.00019178,2]
[315211852,1708939840578,-500.0,0.00019178,2]
[315211853,1708939840587,-500.0,0.00019178,2]
[315211854,1708939840598,-268.97832651,0.00019178,2]
[315211855,1708939840608,-500.0,0.00019178,2]
[315211856,1708939840617,-500.0,0.00019178,2]
[315211857,1708939840626,-249.09722205,0.00019178,2]
[315211858,1708939840635,-500.0,0.00019178,2]
[315211859,1708939840645,-1272.12,0.00019178,2]
[315211860,1708939840654,-500.0,0.00019178,2]
[315211861,1708939840663,-500.0,0.00019178,2]
[315211862,1708939840672,-500.0,0.00019178,2]
[315211863,1708939840681,-500.0,0.00019178,2]
[315211864,1708939840690,-573.72782983,0.00019178,2]
[315211865,1708939840699,-612.23784616,0.00019178,2]
[315211866,1708939840709,-2326.15,0.00019178,2]
[315211867,1708939840718,-500.0,0.00019178,2]
[315211868,1708939840727,-500.0,0.00019178,2]
[315211869,1708939840736,-500.0,0.00019178,2]
[315211870,1708939840745,-10950.06,0.00019178,2]
[315211871,1708939840754,-500.0,0.00019178,2]
[315211872,1708939840763,-500.0,0.00019178,2]
[315211873,1708939840773,-500.0,0.00019178,2]
[315211874,1708939840782,-500.0,0.00019178,2]
[315211875,1708939840791,-500.0,0.00019178,2]
[315211876,1708939840801,-4223.8,0.00019178,2]
[315211877,1708939840810,-500.97209463,0.00019178,2]
[315211878,1708939840820,-405.80118565,0.00019178,2]
[315211879,1708939840829,-500.0,0.00019178,2]
[315211880,1708939840838,-887.03,0.00019178,2]
[315211881,1708939840847,-500.0,0.00019178,2]
[315211882,1708939840856,-539.47583065,0.00019178,2]
[315211883,1708939840866,-500.0,0.00019178,2]
[315211884,1708939840875,-500.0,0.00019178,2]
[315211885,1708939840891,-723.84,0.00019178,2]
[315211886,1708939840900,-500.0,0.00019178,2]
[315211887,1708939840910,-2433.67,0.00019178,2]
[315211888,1708939840921,-500.0,0.00019178,2]
[315211889,1708939840930,-500.0,0.00019178,2]
[315211890,1708939840939,-500.0,0.00019178,2]
[315211891,1708939840948,-500.0,0.00019178,2]
[315211892,1708939840958,-1751.14,0.00019178,2]
[315211893,1708939840968,-500.0,0.00019178,2]
[315211894,1708939840977,-500.0,0.00019178,2]
[315211895,1708939840987,-501.82744386,0.00019178,2]
[315211896,1708939841104,-500.0,0.00019178,2]
[315211897,1708939841114,-500.0,0.00019178,2]
[315211898,1708939841125,-500.0,0.00019178,2]
[315211899,1708939841138,-468.27333622,0.00019178,2]
[315211900,1708939841148,-625.93045909,0.00019178,2]
[315211901,1708939841157,-500.0,0.00019178,2]
[315211902,1708939841166,-500.0,0.00019178,2]
[315211903,1708939841175,-8314.43,0.00019178,2]
[315211904,1708939841184,-500.0,0.00019178,2]
[315211905,1708939841194,-500.0,0.00019178,2]
[315211906,1708939841203,-500.0,0.00019178,2]
[315211907,1708939841212,-21997.95,0.00019178,2]
[315211908,1708939841222,-500.0,0.00019178,2]
[315211909,1708939841231,-877.03,0.00019178,2]
[315211910,1708939841240,-2282.25,0.00019178,2]
[315211911,1708939841248,-432.63229669,0.00019178,2]
[315211912,1708939841257,-1249.87,0.00019178,2]
[315211913,1708939841267,-500.0,0.00019178,2]
[315211914,1708939841276,-500.0,0.00019178,2]
[315211915,1708939841285,-500.0,0.00019178,2]
[315211916,1708939841294,-698.03,0.00019178,2]
[315211917,1708939841303,-500.0,0.00019178,2]
[315211918,1708939841312,-500.0,0.00019178,2]
[315211919,1708939841321,-500.0,0.00019178,2]
[315211920,1708939841330,-500.0,0.00019178,2]
[315211921,1708939841339,-500.0,0.00019178,2]
[315211922,1708939841348,-400.24472666,0.00019178,2]
[315211923,1708939841357,-164.959788,0.00019178,2]
[315211924,1708939841368,-166.666666,0.00019178,2]
[315211925,1708939841377,-166.256346,0.00019178,2]
[315211926,1708939841390,-500.0,0.00019451,2]
[315211927,1708939841399,-500.0,0.00019451,2]
[315211928,1708939841408,-500.0,0.00019451,2]
[315211929,1708939841418,-500.0,0.00019451,2]
[315211930,1708939841427,-167.66075257,0.00019452,2]
[315211931,1708939841436,-353.52125509,0.00019452,2]
[315211932,1708939841445,-500.0,0.00019452,2]
[315211933,1708939841454,-500.0,0.00019452,2]
[315211934,1708939841464,-405.5988611,0.00019452,2]
[315211935,1708939841473,-1516.91,0.00019452,2]
[315211936,1708939841483,-500.0,0.00019452,2]
[315211937,1708939841492,-500.0,0.00019452,2]
[315211938,1708939841501,-500.0,0.00019452,2]
[315211939,1708939841511,-554.34,0.00019452,2]
[315211940,1708939841520,-500.0,0.00019452,2]
[315211941,1708939841530,-500.0,0.00019452,2]
[315211942,1708939841539,-500.0,0.00019452,2]
[315211943,1708939841549,-209.81817441,0.00019452,2]
[315211944,1708939841560,-278.92397509,0.00019452,2]
[315211945,1708939841569,-500.0,0.00019452,2]
[315211946,1708939841579,-500.0,0.00019452,2]
[315211947,1708939841589,-588.21769024,0.00019452,2]
[315211948,1708939841599,-3507.98,0.00019452,2]
[315211949,1708939841609,-378.09595608,0.00019452,2]
[315211950,1708939841619,-1429.74,0.00019452,2]
[315211951,1708939841628,-501.70061197,0.00019452,2]
[315211952,1708939841643,-1518.83,0.00019452,2]
[315211953,1708939841652,-500.0,0.00019452,2]
[315211954,1708939841661,-500.0,0.00019452,2]
[315211955,1708939841671,-632.07,0.00019452,2]
[315211956,1708939841680,-500.0,0.00019452,2]
[315211957,1708939841689,-1409.74,0.00019452,2]
[315211958,1708939841698,-506.5975492,0.00019452,2]
[315211959,1708939841707,-805.77,0.00019452,2]
[315211960,1708939841716,-504.21335184,0.00019452,2]
[315211961,1708939841726,-500.0,0.00019452,2]
[315211962,1708939841735,-500.0,0.00019452,2]
[315211963,1708939841744,-500.0,0.00019452,2]
[315211964,1708939841753,-601.56155229,0.00019452,2]
[315211965,1708939841763,-500.0,0.00019452,2]
[315211966,1708939841773,-500.0,0.00019452,2]
[315211967,1708939841782,-500.0,0.00019452,2]
[315211968,1708939841792,-500.0,0.00019452,2]
[315211969,1708939841801,-500.0,0.00019452,2]
[315211970,1708939841811,-500.0,0.00019452,2]
[315211971,1708939841820,-500.0,0.00019452,2]
[315211972,1708939841830,-500.0,0.00019452,2]
[315211973,1708939841839,-1865.36,0.00019452,2]
[315211974,1708939841849,-500.0,0.00019452,2]
[315211975,1708939841859,-500.79176669,0.00019452,2]
[315211976,1708939841868,-500.0,0.00019452,2]
[315211977,1708939841877,-500.0,0.00019452,2]
[315211978,1708939841889,-500.94944783,0.00019452,2]
[315211979,1708939841898,-500.0,0.00019452,2]
[315211980,1708939841907,-1516.11,0.00019452,2]
[315211981,1708939841917,-500.0,0.00019452,2]
[315211982,1708939841926,-500.0,0.00019452,2]
[315211983,1708939841935,-500.0,0.00019452,2]
[315211984,1708939841945,-500.0,0.00019452,2]
[315211985,1708939841954,-500.0,0.00019452,2]
[315211986,1708939841963,-500.0,0.00019452,2]
[315211987,1708939841973,-628.87,0.00019452,2]
[315211988,1708939841982,-500.0,0.00019452,2]
[315211989,1708939841992,-500.0,0.00019452,2]
[315211990,1708939842001,-500.0,0.00019452,2]
[315211991,1708939842010,-500.0,0.00019452,2]
[315211992,1708939842020,-500.0,0.00019452,2]
[315211993,1708939842029,-500.0,0.00019452,2]
[315211994,1708939842038,-500.0,0.00019452,2]
[315211995,1708939842048,-500.0,0.00019452,2]
[315211996,1708939842057,-500.0,0.00019452,2]
[315211997,1708939842066,-948.72,0.00019452,2]
[315211998,1708939842075,-500.0,0.00019452,2]
[315211999,1708939842085,-500.0,0.00019452,2]
[315212000,1708939842094,-500.0,0.00019452,2]
[315212001,1708939842103,-500.0,0.00019452,2]
[315212002,1708939842114,-501.72333826,0.00019452,2]
[315212003,1708939842123,-500.0,0.00019452,2]
[315212004,1708939842135,-500.0,0.00019452,2]
[315212005,1708939842144,-500.0,0.00019452,2]
[315212006,1708939842153,-500.0,0.00019452,2]
[315212007,1708939842163,-500.0,0.00019452,2]
[315212008,1708939842172,-500.0,0.00019452,2]
[315212009,1708939842181,-500.0,0.00019452,2]
[315212010,1708939842190,-502.09355324,0.00019452,2]
[315212011,1708939842200,-500.0,0.00019452,2]
[315212012,1708939842210,-746.96,0.00019452,2]
[315212013,1708939842219,-1368.12,0.00019452,2]
[315212014,1708939842229,-3937.74,0.00019452,2]
[315212015,1708939842238,-244.30017244,0.00019452,2]
[315212016,1708939842247,-922.25,0.00019452,2]
[315212017,1708939842257,-500.0,0.00019452,2]
[315212018,1708939842266,-500.0,0.00019452,2]
[315212019,1708939842275,-500.0,0.00019452,2]
[315212020,1708939842284,-2939.42,0.00019452,2]
[315212021,1708939842293,-2807.22,0.00019452,2]
[315212022,1708939842303,-500.0,0.00019452,2]
[315212023,1708939842312,-500.0,0.00019452,2]
[315212024,1708939842321,-500.0,0.00019452,2]
[315212025,1708939842330,-500.0,0.00019452,2]
[315212026,1708939842339,-1899.13,0.00019452,2]
[315212027,1708939842348,-2617.62,0.00019452,2]
[315212028,1708939842357,-500.0,0.00019452,2]
[315212029,1708939842366,-500.0,0.00019452,2]
[315212030,1708939842375,-500.0,0.00019452,2]
[315212031,1708939842389,-1000.0,0.00019452,2]
[315212032,1708939842398,-2981.64506272,0.00019452,2]
[315212033,1708939842414,-535.51548194,0.00019452,2]
[315212057,1708939845402,-500.0,0.00019178,2]
[315212058,1708939845413,-421.449999,0.00019442,3]
[315212059,1708939845425,-13698.78613713,0.00019442,3]
[315212064,1708939845507,-0.00240749,0.00019442,3]
[315212066,1708939845520,-1781.69928925,0.00019442,3]
[315212068,1708939845532,-709.66667316,0.00019442,3]
[315212071,1708939845544,-655.01693285,0.00019442,3]
[315212073,1708939845555,-2431.23985971,0.00019442,3]
[315212153,1708939846282,-3061.20000001,0.00019178,2]
[315212164,1708939846376,-306.96999999,0.00019178,2]
[315212166,1708939846386,-471.37355978,0.00019442,3]
[315212172,1708939846438,-2096.89767157,0.00019442,3]
[315212174,1708939846450,-907.65881407,0.00019442,3]
[315212388,1708941018428,3000.0,0.00016664,2]
[315212439,1708941040974,-1822.60384738,0.00017118,2]
[315212472,1708941041261,-40.08847683,0.00017118,2]
[315212474,1708941041271,-428.36024684,0.00017119,2]
[315212476,1708941041281,-525.188096,0.0001712,2]
[315212478,1708941041293,-3411.68160048,0.00017396,2]
[315212480,1708941041303,-166.1319021,0.00017497,2]
[315212482,1708941041312,-1972.8347367,0.00017559,2]
[315212484,1708941041322,-24900.0,0.00017597,2]
[315212486,1708941041331,-184.5352824,0.00017597,2]
[315212487,1708941041340,-688.7777928,0.00017597,2]
[315212488,1708941041349,-299.94859112,0.00018171,2]
[315212489,1708941041358,-153.0,0.000191,2]
[315212490,1708941041367,-153.0,0.000191,2]
[315212491,1708941041376,-153.0,0.000191,2]
[315212492,1708941041385,-153.0,0.000191,2]
[315212493,1708941041395,-153.0,0.000191,2]
[315212494,1708941041404,-153.0,0.000191,2]
[315212495,1708941041413,-302.1304468,0.000191,2]
[315212496,1708941041422,-344.8074923,0.000191,2]
[315212497,1708941041431,-153.0,0.000191,2]
[315212498,1708941041440,-153.0,0.000191,2]
[315212499,1708941041449,-153.0,0.000191,2]
[315212500,1708941041458,-153.0,0.000191,2]
[315212501,1708941041468,-153.0,0.000191,2]
[315212502,1708941041477,-153.0,0.000191,2]
[315212503,1708941041486,-401.1652708,0.000191,2]
[315212504,1708941041496,-153.0,0.000191,2]
[315212505,1708941041505,-153.0,0.000191,2]
[315212506,1708941041514,-153.0,0.000191,2]
[315212507,1708941041523,-153.0,0.000191,2]
[315212508,1708941041532,-200.5826354,0.000191,2]
[315212509,1708941041543,-153.0,0.000191,2]
[315212510,1708941041553,-153.0,0.000191,2]
[315212511,1708941041562,-153.0,0.000191,2]
[315212512,1708941041574,-153.0,0.000191,2]
[315212513,1708941041583,-153.0,0.000191,2]
[315212514,1708941041593,-200.5826354,0.000191,2]
[315212515,1708941041604,-153.0,0.000191,2]
[315212516,1708941041613,-200.5826354,0.000191,2]
[315212518,1708941041622,-153.0,0.000191,2]
[315212520,1708941041632,-153.0,0.000191,2]
[315212521,1708941041640,-200.5826354,0.000191,2]
[315212535,1708941041771,-175.10182328,0.00019178,2]
[315212536,1708941041781,-500.0,0.00019178,2]
[315212538,1708941041793,-500.0,0.00019178,2]
[315212540,1708941041802,-500.0,0.00019178,2]
[315212541,1708941041811,-151.0,0.00019178,2]
[315212543,1708941041820,-500.0,0.00019178,2]
[315212545,1708941041829,-500.0,0.00019178,2]
[315212547,1708941041839,-500.0,0.00019178,2]
[315212549,1708941041850,-1353.55,0.00019178,2]
[315212551,1708941041859,-773.65,0.00019178,2]
[315212552,1708941041868,-566.16513416,0.00019178,2]
[315212553,1708941041877,-500.0,0.00019178,2]
[315212555,1708941041887,-500.0,0.00019178,2]
[315212557,1708941041896,-500.0,0.00019178,2]
[315212559,1708941041906,-500.0,0.00019178,2]
[315212561,1708941041915,-501.12566577,0.00019178,2]
[315212563,1708941041924,-500.0,0.00019178,2]
[315212565,1708941041933,-510.75269847,0.00019178,2]
[315212567,1708941041943,-1005.8616059,0.00019178,2]
[315212569,1708941041952,-500.0,0.00019178,2]
[315212571,1708941041960,-500.0,0.00019178,2]
[315212572,1708941041969,-500.0,0.00019178,2]
[315212574,1708941041980,-500.0,0.00019178,2]
[315212576,1708941041989,-501.65704131,0.00019178,2]
[315212579,1708941041999,-500.0,0.00019178,2]
[315212580,1708941042008,-500.0,0.00019178,2]
[315212582,1708941042017,-500.87195388,0.00019178,2]
[315212585,1708941042026,-500.0,0.00019178,2]
[315212587,1708941042036,-500.0,0.00019178,2]
[315212589,1708941042046,-511.41656817,0.00019178,2]
[315212590,1708941042056,-500.00000043,0.00019178,2]
[315212592,1708941042065,-501.56333098,0.00019178,2]
[315212594,1708941042074,-500.0,0.00019178,2]
[315212595,1708941042083,-500.0,0.00019178,2]
[315212596,1708941042092,-500.0,0.00019178,2]
[315212597,1708941042102,-566.42558314,0.00019178,2]
[315212598,1708941042112,-500.0,0.00019178,2]
[315212599,1708941042121,-500.0,0.00019178,2]
[315212600,1708941042130,-500.0,0.00019178,2]
[315212601,1708941042140,-3227.83,0.00019178,2]
[315212602,1708941042150,-603.8,0.00019178,2]
[315212603,1708941042163,-1372.76,0.00019178,2]
[315212604,1708941042172,-500.0,0.00019178,2]
[315212605,1708941042182,-500.0,0.00019178,2]
[315212606,1708941042191,-507.460159,0.00019178,2]
[315212607,1708941042200,-1461.3,0.00019178,2]
[315212608,1708941042210,-500.0,0.00019178,2]
[315212609,1708941042219,-500.0,0.00019178,2]
[315212610,1708941042228,-442.6750125,0.00019178,2]
[315212611,1708941042237,-607.19,0.00019178,2]
[315212612,1708941042246,-500.49222715,0.00019178,2]
[315212613,1708941042255,-500.0,0.00019178,2]
[315212614,1708941042264,-500.0,0.00019178,2]
[315212615,1708941042274,-500.0,0.00019178,2]
[315212616,1708941042283,-505.83665894,0.00019178,2]
[315212617,1708941042294,-500.0,0.00019178,2]
[315212619,1708941042303,-501.19388928,0.00019178,2]
[315212620,1708941042313,-500.0,0.00019178,2]
[315212622,1708941042322,-500.0,0.00019178,2]
[315212624,1708941042332,-500.0,0.00019178,2]